[Event "Titled Tuesday Blitz July 6 2021"]
[White "Yakubboev, Nodirbek"]
[Black "Lortkipanidze, Nodar"]
[WhiteFideId "14203987"]
[BlackFideId "13604058"]
[WhiteElo "2519"]
[BlackElo "2312"]
[Result "1/2-1/2"]
[Round "05"]
[TimeControl "180+1"]
[Date "2021.07.06"]
[WhiteClock "0:00:11"]
[BlackClock "0:00:25"]

1. e4 {[%clk 0:02:56]}  e6 {[%clk 0:02:59]} 2. Qe2 {[%clk 0:02:54]}  c5 {[%clk 0:02:58]} 3. g3 {[%clk 0:02:53]}  Nc6 {[%clk 0:02:57]} 4. Bg2 {[%clk 0:02:53]}  g6 {[%clk 0:02:51]} 5. Nf3 {[%clk 0:02:48]}  Bg7 {[%clk 0:02:51]} 6. O-O {[%clk 0:02:47]}  Nge7 {[%clk 0:02:49]} 7. c3 {[%clk 0:02:48]}  d5 {[%clk 0:02:46]} 8. e5 {[%clk 0:02:47]}  Qc7 {[%clk 0:02:39]} 9. Re1 {[%clk 0:02:38]}  h6 {[%clk 0:02:21]} 10. Na3 {[%clk 0:02:31]}  a6 {[%clk 0:02:19]} 11. d4 {[%clk 0:02:31]}  cxd4 {[%clk 0:02:10]} 12. cxd4 {[%clk 0:02:32]}  Bd7 {[%clk 0:02:03]} 13. Bd2 {[%clk 0:02:19]}  Nf5 {[%clk 0:02:00]} 14. Qd3 {[%clk 0:02:11]}  Qb6 {[%clk 0:01:56]} 15. Nc2 {[%clk 0:02:07]}  O-O {[%clk 0:01:51]} 16. g4 {[%clk 0:02:01]}  Nfe7 {[%clk 0:01:51]} 17. h4 {[%clk 0:01:59]}  Rfc8 {[%clk 0:01:43]} 18. h5 {[%clk 0:01:35]}  gxh5 {[%clk 0:01:20]} 19. gxh5 {[%clk 0:01:31]}  Nf5 {[%clk 0:01:20]} 20. Bc3 {[%clk 0:01:24]}  Nce7 {[%clk 0:01:16]} 21. Nh2 {[%clk 0:01:18]}  Ba4 {[%clk 0:01:13]} 22. Ne3 {[%clk 0:01:16]}  Qb5 {[%clk 0:01:10]} 23. Qd2 {[%clk 0:01:13]}  Nxe3 {[%clk 0:01:07]} 24. Rxe3 {[%clk 0:01:09]}  Nf5 {[%clk 0:01:07]} 25. Rf3 {[%clk 0:01:09]}  Qd7 {[%clk 0:00:52]} 26. Bh3 {[%clk 0:01:04]}  Ne7 {[%clk 0:00:50]} 27. Kh1 {[%clk 0:01:01]}  Kh8 {[%clk 0:00:30]} 28. Rxf7 {[%clk 0:00:56]}  Rf8 {[%clk 0:00:29]} 29. Rxg7 {[%clk 0:00:55]}  Kxg7 {[%clk 0:00:26]} 30. Rg1+ {[%clk 0:00:55]}  Kh7 {[%clk 0:00:25]} 31. Qe3 {[%clk 0:00:25]}  Bc2 {[%clk 0:00:20]} 32. Bd2 {[%clk 0:00:24]}  Ng8 {[%clk 0:00:13]} 33. Ng4 {[%clk 0:00:17]}  Qe8 {[%clk 0:00:12]} 34. Nf6+ {[%clk 0:00:17]}  Rxf6 {[%clk 0:00:12]} 35. exf6 {[%clk 0:00:17]}  Qxh5 {[%clk 0:00:13]} 36. Qg3 {[%clk 0:00:10]}  Bg6 {[%clk 0:00:09]} 37. Kg2 {[%clk 0:00:05]}  Nxf6 {[%clk 0:00:09]} 38. Qc7+ {[%clk 0:00:04]}  Bf7 {[%clk 0:00:08]} 39. Kh2 {[%clk 0:00:03]}  Rf8 {[%clk 0:00:07]} 40. Bf4 {[%clk 0:00:03]}  Ne4 {[%clk 0:00:06]} 41. Be5 {[%clk 0:00:03]}  Ng5 {[%clk 0:00:05]} 42. Rg3 {[%clk 0:00:03]}  Rg8 {[%clk 0:00:04]} 43. Kg2 {[%clk 0:00:01]}  Nxh3 {[%clk 0:00:03]} 44. Rxg8 {[%clk 0:00:01]}  Kxg8 {[%clk 0:00:04]} 45. Qc8+ {[%clk 0:00:01]}  Be8 {[%clk 0:00:05]} 46. Qxe6+ {[%clk 0:00:01]}  Bf7 {[%clk 0:00:05]} 47. Qxh3 {[%clk 0:00:01]}  Qxh3+ {[%clk 0:00:05]} 48. Kxh3 {[%clk 0:00:02]}  Bg6 {[%clk 0:00:06]} 49. Kh4 {[%clk 0:00:03]}  Kf7 {[%clk 0:00:07]} 50. Bf4 {[%clk 0:00:03]}  h5 {[%clk 0:00:07]} 51. Kg5 {[%clk 0:00:03]}  Bb1 {[%clk 0:00:08]} 52. a3 {[%clk 0:00:02]}  Bg6 {[%clk 0:00:09]} 53. Be5 {[%clk 0:00:03]}  Be4 {[%clk 0:00:07]} 54. Kxh5 {[%clk 0:00:02]}  Ke6 {[%clk 0:00:07]} 55. Kg5 {[%clk 0:00:03]}  a5 {[%clk 0:00:08]} 56. f4 {[%clk 0:00:04]}  a4 {[%clk 0:00:08]} 57. Bc7 {[%clk 0:00:03]}  b5 {[%clk 0:00:08]} 58. Ba5 {[%clk 0:00:04]}  Bd3 {[%clk 0:00:09]} 59. Bb4 {[%clk 0:00:05]}  Be4 {[%clk 0:00:09]} 60. Bc5 {[%clk 0:00:05]}  Bd3 {[%clk 0:00:10]} 61. Kg4 {[%clk 0:00:06]}  Be4 {[%clk 0:00:10]} 62. Bb4 {[%clk 0:00:06]}  Bd3 {[%clk 0:00:11]} 63. Ba5 {[%clk 0:00:06]}  Be4 {[%clk 0:00:11]} 64. Bc7 {[%clk 0:00:06]}  Bd3 {[%clk 0:00:12]} 65. Be5 {[%clk 0:00:07]}  Be2+ {[%clk 0:00:12]} 66. Kg3 {[%clk 0:00:07]}  Bd3 {[%clk 0:00:13]} 67. Kf3 {[%clk 0:00:07]}  Kf5 {[%clk 0:00:13]} 68. Ke3 {[%clk 0:00:08]}  Bc4 {[%clk 0:00:13]} 69. Kd2 {[%clk 0:00:08]}  Bb3 {[%clk 0:00:14]} 70. Kc3 {[%clk 0:00:08]}  Bc4 {[%clk 0:00:15]} 71. Kb4 {[%clk 0:00:08]}  Ke4 {[%clk 0:00:15]} 72. Kc5 {[%clk 0:00:09]}  Kf5 {[%clk 0:00:16]} 73. Kd6 {[%clk 0:00:09]}  Bb3 {[%clk 0:00:16]} 74. Kc6 {[%clk 0:00:09]}  Bc4 {[%clk 0:00:16]} 75. Bc7 {[%clk 0:00:09]}  Ke6 {[%clk 0:00:16]} 76. Kc5 {[%clk 0:00:09]}  Kf5 {[%clk 0:00:16]} 77. Kc6 {[%clk 0:00:06]}  Ke6 {[%clk 0:00:16]} 78. Bd8 {[%clk 0:00:06]}  Kf5 {[%clk 0:00:16]} 79. Bg5 {[%clk 0:00:06]}  Ke4 {[%clk 0:00:15]} 80. Kd6 {[%clk 0:00:05]}  Kf5 {[%clk 0:00:14]} 81. Bh6 {[%clk 0:00:05]}  Bb3 {[%clk 0:00:13]} 82. Kc5 {[%clk 0:00:06]}  Bc4 {[%clk 0:00:14]} 83. Kd6 {[%clk 0:00:06]}  Bb3 {[%clk 0:00:14]} 84. Bg5 {[%clk 0:00:05]}  Bc4 {[%clk 0:00:14]} 85. Kc5 {[%clk 0:00:05]}  Ke4 {[%clk 0:00:14]} 86. Bh6 {[%clk 0:00:02]}  Kf5 {[%clk 0:00:14]} 87. Bg7 {[%clk 0:00:02]}  Kxf4 {[%clk 0:00:14]} 88. Be5+ {[%clk 0:00:02]}  Ke4 {[%clk 0:00:14]} 89. Bc7 {[%clk 0:00:01]}  Kd3 {[%clk 0:00:15]} 90. Ba5 {[%clk 0:00:02]}  Kc2 {[%clk 0:00:15]} 91. Bc3 {[%clk 0:00:02]}  Kb3 {[%clk 0:00:16]} 92. Kb6 {[%clk 0:00:02]}  Kc2 {[%clk 0:00:16]} 93. Kc5 {[%clk 0:00:02]}  Kd3 {[%clk 0:00:17]} 94. Kb4 {[%clk 0:00:02]}  Ke4 {[%clk 0:00:17]} 95. Kc5 {[%clk 0:00:03]}  Kf5 {[%clk 0:00:18]} 96. Kb4 {[%clk 0:00:04]}  Ke6 {[%clk 0:00:18]} 97. Kc5 {[%clk 0:00:05]}  Kd7 {[%clk 0:00:19]} 98. Bb4 {[%clk 0:00:05]}  Kc7 {[%clk 0:00:20]} 99. Bc3 {[%clk 0:00:06]}  Kd7 {[%clk 0:00:20]} 100. Bb4 {[%clk 0:00:07]}  Ke6 {[%clk 0:00:21]} 101. Bc3 {[%clk 0:00:08]}  Kf5 {[%clk 0:00:22]} 102. Kb4 {[%clk 0:00:08]}  Ke4 {[%clk 0:00:23]} 103. Kc5 {[%clk 0:00:09]}  Kd3 {[%clk 0:00:24]} 104. Kb4 {[%clk 0:00:10]}  Kc2 {[%clk 0:00:25]} 105. Kc5 {[%clk 0:00:11]} 1/2-1/2


[Site "https://www.chess.com"]

[Event "Titled Tuesday Blitz July 6 2021"]
[White "Zanette, Edgard Vinicius"]
[Black "Kavyev, Ruslan"]
[WhiteFideId "2109263"]
[BlackFideId "34110981"]
[WhiteElo "2202"]
[BlackElo "2172"]
[Result "0-1"]
[Round "05"]
[TimeControl "180+1"]
[Date "2021.07.06"]
[WhiteClock "0:01:23"]
[BlackClock "0:01:50"]

1. e4 {[%clk 0:03:00]}  c5 {[%clk 0:02:58]} 2. Nf3 {[%clk 0:02:58]}  d6 {[%clk 0:02:53]} 3. d4 {[%clk 0:02:58]}  cxd4 {[%clk 0:02:54]} 4. Nxd4 {[%clk 0:02:58]}  Nf6 {[%clk 0:02:53]} 5. f3 {[%clk 0:02:58]}  Nc6 {[%clk 0:02:51]} 6. c4 {[%clk 0:02:58]}  e6 {[%clk 0:02:52]} 7. Nb3 {[%clk 0:02:57]}  Be7 {[%clk 0:02:52]} 8. Nc3 {[%clk 0:02:52]}  O-O {[%clk 0:02:52]} 9. Be3 {[%clk 0:02:50]}  d5 {[%clk 0:02:48]} 10. cxd5 {[%clk 0:02:49]}  exd5 {[%clk 0:02:48]} 11. exd5 {[%clk 0:02:49]}  Nb4 {[%clk 0:02:48]} 12. Bc4 {[%clk 0:02:48]}  a6 {[%clk 0:02:36]} 13. a3 {[%clk 0:02:46]}  b5 {[%clk 0:02:34]} 14. Bxb5 {[%clk 0:02:27]}  axb5 {[%clk 0:02:33]} 15. axb4 {[%clk 0:02:27]}  Rxa1 {[%clk 0:02:34]} 16. Nxa1 {[%clk 0:02:24]}  Bxb4 {[%clk 0:02:34]} 17. O-O {[%clk 0:02:21]}  Bxc3 {[%clk 0:02:07]} 18. bxc3 {[%clk 0:02:20]}  Nxd5 {[%clk 0:02:08]} 19. Bd4 {[%clk 0:02:20]}  Nf4 {[%clk 0:02:06]} 20. Bc5 {[%clk 0:02:00]}  Qg5 {[%clk 0:02:00]} 21. Qd2 {[%clk 0:01:23]}  Nh3+ {[%clk 0:01:50]} 0-1


[Site "https://www.chess.com"]

[Event "Titled Tuesday Blitz July 6 2021"]
[White "Abdurakhmonov, Mukhammadali"]
[Black "Le, Tuan Minh"]
[WhiteFideId "14207346"]
[BlackFideId "12401153"]
[WhiteElo "2266"]
[BlackElo "2450"]
[Result "1-0"]
[Round "06"]
[TimeControl "180+1"]
[Date "2021.07.06"]
[WhiteClock "0:00:06"]
[BlackClock "0:00:03"]

1. e4 {[%clk 0:03:00]}  c5 {[%clk 0:03:00]} 2. Nc3 {[%clk 0:02:59]}  Nc6 {[%clk 0:03:00]} 3. Nge2 {[%clk 0:02:59]}  e5 {[%clk 0:02:59]} 4. Nd5 {[%clk 0:02:59]}  Nf6 {[%clk 0:02:37]} 5. Nec3 {[%clk 0:02:58]}  d6 {[%clk 0:02:32]} 6. Bc4 {[%clk 0:02:58]}  Be6 {[%clk 0:02:30]} 7. O-O {[%clk 0:02:56]}  Be7 {[%clk 0:02:29]} 8. d3 {[%clk 0:02:56]}  O-O {[%clk 0:02:28]} 9. f4 {[%clk 0:02:55]}  exf4 {[%clk 0:02:28]} 10. Bxf4 {[%clk 0:02:56]}  Nd7 {[%clk 0:02:24]} 11. Qh5 {[%clk 0:02:45]}  Nde5 {[%clk 0:02:16]} 12. Bxe5 {[%clk 0:02:42]}  Nxe5 {[%clk 0:02:12]} 13. Nxe7+ {[%clk 0:02:37]}  Qxe7 {[%clk 0:02:13]} 14. Nd5 {[%clk 0:02:33]}  Qd8 {[%clk 0:02:13]} 15. Rf4 {[%clk 0:02:24]}  b5 {[%clk 0:01:55]} 16. Bxb5 {[%clk 0:01:10]}  Bxd5 {[%clk 0:01:54]} 17. exd5 {[%clk 0:01:11]}  Qb6 {[%clk 0:01:55]} 18. Bc6 {[%clk 0:01:12]}  Qxb2 {[%clk 0:01:49]} 19. Raf1 {[%clk 0:01:08]}  Rab8 {[%clk 0:01:47]} 20. Qe2 {[%clk 0:00:57]}  Qxa2 {[%clk 0:01:34]} 21. Ra4 {[%clk 0:00:57]}  Qb2 {[%clk 0:01:34]} 22. Rxa7 {[%clk 0:00:57]}  Qd4+ {[%clk 0:01:10]} 23. Kh1 {[%clk 0:00:57]}  c4 {[%clk 0:01:04]} 24. Ra3 {[%clk 0:00:34]}  cxd3 {[%clk 0:01:03]} 25. cxd3 {[%clk 0:00:35]}  Rb2 {[%clk 0:01:03]} 26. Qe4 {[%clk 0:00:32]}  Qxe4 {[%clk 0:00:31]} 27. dxe4 {[%clk 0:00:33]}  Re2 {[%clk 0:00:32]} 28. Ra4 {[%clk 0:00:33]}  h5 {[%clk 0:00:29]} 29. h3 {[%clk 0:00:32]}  Rb8 {[%clk 0:00:28]} 30. Ra8 {[%clk 0:00:20]}  Rxa8 {[%clk 0:00:14]} 31. Bxa8 {[%clk 0:00:20]}  Rxe4 {[%clk 0:00:14]} 32. Rb1 {[%clk 0:00:20]}  Ra4 {[%clk 0:00:09]} 33. Rb8+ {[%clk 0:00:19]}  Kh7 {[%clk 0:00:10]} 34. Rd8 {[%clk 0:00:19]}  h4 {[%clk 0:00:09]} 35. Bc6 {[%clk 0:00:16]}  Ra1+ {[%clk 0:00:09]} 36. Kh2 {[%clk 0:00:17]}  Ra2 {[%clk 0:00:10]} 37. Kg1 {[%clk 0:00:14]}  Nc4 {[%clk 0:00:10]} 38. Bb5 {[%clk 0:00:14]}  Ne3 {[%clk 0:00:10]} 39. Bd3+ {[%clk 0:00:14]}  g6 {[%clk 0:00:10]} 40. Be4 {[%clk 0:00:14]}  f5 {[%clk 0:00:06]} 41. Bf3 {[%clk 0:00:14]}  Nc4 {[%clk 0:00:07]} 42. Re8 {[%clk 0:00:13]}  Kg7 {[%clk 0:00:05]} 43. Re6 {[%clk 0:00:13]}  Ra1+ {[%clk 0:00:06]} 44. Kf2 {[%clk 0:00:12]}  Ra2+ {[%clk 0:00:04]} 45. Be2 {[%clk 0:00:12]}  Kf7 {[%clk 0:00:04]} 46. Ke1 {[%clk 0:00:13]}  Ra1+ {[%clk 0:00:04]} 47. Kf2 {[%clk 0:00:13]}  Ra2 {[%clk 0:00:04]} 48. Ke1 {[%clk 0:00:14]}  Ne5 {[%clk 0:00:03]} 49. Rxd6 {[%clk 0:00:14]}  Ra5 {[%clk 0:00:03]} 50. Kf2 {[%clk 0:00:07]}  Kg7 {[%clk 0:00:03]} 51. Ke3 {[%clk 0:00:06]}  Nf7 {[%clk 0:00:04]} 52. Rd7 {[%clk 0:00:06]}  Kf6 {[%clk 0:00:04]} 53. Kd4 {[%clk 0:00:05]}  Ra4+ {[%clk 0:00:05]} 54. Kc5 {[%clk 0:00:05]}  Ra2 {[%clk 0:00:05]} 55. Bf3 {[%clk 0:00:02]}  Rc2+ {[%clk 0:00:05]} 56. Kb6 {[%clk 0:00:02]}  Rc1 {[%clk 0:00:05]} 57. d6 {[%clk 0:00:02]}  Ne5 {[%clk 0:00:06]} 58. Rd8 {[%clk 0:00:02]}  Nf7 {[%clk 0:00:05]} 59. Rd7 {[%clk 0:00:02]}  g5 {[%clk 0:00:05]} 60. Kb7 {[%clk 0:00:02]}  Ne5 {[%clk 0:00:04]} 61. Re7 {[%clk 0:00:03]}  g4 {[%clk 0:00:04]} 62. hxg4 {[%clk 0:00:03]}  fxg4 {[%clk 0:00:05]} 63. Rxe5 {[%clk 0:00:04]}  Kxe5 {[%clk 0:00:02]} 64. d7 {[%clk 0:00:04]}  gxf3 {[%clk 0:00:02]} 65. d8=Q {[%clk 0:00:04]}  Kf4 {[%clk 0:00:01]} 66. Qxh4+ {[%clk 0:00:04]}  Kf5 {[%clk 0:00:01]} 67. gxf3 {[%clk 0:00:04]}  Rb1+ {[%clk 0:00:02]} 68. Kc6 {[%clk 0:00:05]}  Rc1+ {[%clk 0:00:02]} 69. Kd5 {[%clk 0:00:05]}  Rd1+ {[%clk 0:00:02]} 70. Kc4 {[%clk 0:00:06]}  Rg1 {[%clk 0:00:03]} 71. Qe4+ {[%clk 0:00:06]}  Kf6 {[%clk 0:00:03]} 72. Qd4+ {[%clk 0:00:06]} 1-0


[Site "https://www.chess.com"]

[Event "Titled Tuesday Blitz July 6 2021"]
[White "Abdusattorov, Nodirbek"]
[Black "Vidit, Santosh Gujrathi"]
[WhiteFideId "14204118"]
[BlackFideId "5029465"]
[WhiteElo "2662"]
[BlackElo "2735"]
[Result "1/2-1/2"]
[Round "06"]
[TimeControl "180+1"]
[Date "2021.07.06"]
[WhiteClock "0:00:05"]
[BlackClock "0:00:04"]

1. e4 {[%clk 0:03:00]}  c5 {[%clk 0:02:56]} 2. Nf3 {[%clk 0:03:00]}  e6 {[%clk 0:02:56]} 3. g3 {[%clk 0:02:59]}  d5 {[%clk 0:02:56]} 4. exd5 {[%clk 0:02:58]}  exd5 {[%clk 0:02:57]} 5. Bg2 {[%clk 0:02:58]}  Nc6 {[%clk 0:02:56]} 6. O-O {[%clk 0:02:58]}  d4 {[%clk 0:02:50]} 7. d3 {[%clk 0:02:57]}  Be7 {[%clk 0:02:49]} 8. Re1 {[%clk 0:02:49]}  Nf6 {[%clk 0:02:48]} 9. Bg5 {[%clk 0:02:49]}  O-O {[%clk 0:02:48]} 10. Nbd2 {[%clk 0:02:48]}  h6 {[%clk 0:02:47]} 11. Bxf6 {[%clk 0:02:45]}  Bxf6 {[%clk 0:02:48]} 12. Ne4 {[%clk 0:02:37]}  Be7 {[%clk 0:02:48]} 13. a4 {[%clk 0:02:36]}  Bg4 {[%clk 0:02:41]} 14. h3 {[%clk 0:02:35]}  Be6 {[%clk 0:02:41]} 15. Nfd2 {[%clk 0:02:25]}  Qd7 {[%clk 0:02:39]} 16. f4 {[%clk 0:02:03]}  Bxh3 {[%clk 0:02:33]} 17. Bxh3 {[%clk 0:02:04]}  Qxh3 {[%clk 0:02:33]} 18. Qf3 {[%clk 0:02:05]}  Rae8 {[%clk 0:02:23]} 19. Nc4 {[%clk 0:02:04]}  Qd7 {[%clk 0:02:05]} 20. f5 {[%clk 0:02:03]}  Qd8 {[%clk 0:01:55]} 21. Re2 {[%clk 0:01:56]}  Bg5 {[%clk 0:01:48]} 22. Nxc5 {[%clk 0:01:50]}  Rxe2 {[%clk 0:01:46]} 23. Qxe2 {[%clk 0:01:50]}  Qd5 {[%clk 0:01:44]} 24. Nxb7 {[%clk 0:01:41]}  Qxf5 {[%clk 0:01:09]} 25. Nbd6 {[%clk 0:01:39]}  Qd5 {[%clk 0:01:06]} 26. Rf1 {[%clk 0:01:07]}  f5 {[%clk 0:01:00]} 27. Qg2 {[%clk 0:00:55]}  Qxg2+ {[%clk 0:00:54]} 28. Kxg2 {[%clk 0:00:56]}  g6 {[%clk 0:00:54]} 29. Re1 {[%clk 0:00:55]}  Be7 {[%clk 0:00:47]} 30. c3 {[%clk 0:00:47]}  Bf6 {[%clk 0:00:43]} 31. cxd4 {[%clk 0:00:42]}  Bxd4 {[%clk 0:00:43]} 32. Re6 {[%clk 0:00:40]}  Rf6 {[%clk 0:00:42]} 33. Re8+ {[%clk 0:00:36]}  Rf8 {[%clk 0:00:39]} 34. Re2 {[%clk 0:00:35]}  Bf6 {[%clk 0:00:25]} 35. Re6 {[%clk 0:00:23]}  Nd4 {[%clk 0:00:25]} 36. Re1 {[%clk 0:00:24]}  Rb8 {[%clk 0:00:22]} 37. Kf2 {[%clk 0:00:21]}  h5 {[%clk 0:00:21]} 38. Re8+ {[%clk 0:00:15]}  Rxe8 {[%clk 0:00:21]} 39. Nxe8 {[%clk 0:00:16]}  Be7 {[%clk 0:00:19]} 40. Nc7 {[%clk 0:00:16]}  Kf7 {[%clk 0:00:17]} 41. Nd5 {[%clk 0:00:15]}  Bd8 {[%clk 0:00:14]} 42. b4 {[%clk 0:00:15]}  g5 {[%clk 0:00:13]} 43. b5 {[%clk 0:00:15]}  Ke6 {[%clk 0:00:12]} 44. Nb4 {[%clk 0:00:15]}  g4 {[%clk 0:00:10]} 45. a5 {[%clk 0:00:14]}  Nxb5 {[%clk 0:00:10]} 46. Nc6 {[%clk 0:00:15]}  Bf6 {[%clk 0:00:09]} 47. Kg2 {[%clk 0:00:09]}  h4 {[%clk 0:00:09]} 48. gxh4 {[%clk 0:00:08]}  Bxh4 {[%clk 0:00:10]} 49. Ne3 {[%clk 0:00:06]}  Bg5 {[%clk 0:00:10]} 50. Nc4 {[%clk 0:00:05]}  f4 {[%clk 0:00:10]} 51. Nb4 {[%clk 0:00:05]}  Bh4 {[%clk 0:00:09]} 52. Nd2 {[%clk 0:00:05]}  Be7 {[%clk 0:00:08]} 53. Nc6 {[%clk 0:00:05]}  Bd6 {[%clk 0:00:06]} 54. Ne4 {[%clk 0:00:05]}  f3+ {[%clk 0:00:06]} 55. Kf2 {[%clk 0:00:05]}  Bf4 {[%clk 0:00:05]} 56. Nd8+ {[%clk 0:00:04]}  Kd5 {[%clk 0:00:04]} 57. a6 {[%clk 0:00:04]}  Kd4 {[%clk 0:00:04]} 58. Ne6+ {[%clk 0:00:04]}  Kxd3 {[%clk 0:00:03]} 59. N4c5+ {[%clk 0:00:03]}  Kc4 {[%clk 0:00:03]} 60. Nxf4 {[%clk 0:00:02]}  Kxc5 {[%clk 0:00:04]} 61. Kg3 {[%clk 0:00:02]}  Kb6 {[%clk 0:00:03]} 62. Nd3 {[%clk 0:00:02]}  Kxa6 {[%clk 0:00:03]} 63. Kxg4 {[%clk 0:00:03]}  Nd4 {[%clk 0:00:03]} 64. Kf4 {[%clk 0:00:04]}  Kb5 {[%clk 0:00:04]} 65. Ke3 {[%clk 0:00:04]}  Kc4 {[%clk 0:00:04]} 66. Ne5+ {[%clk 0:00:03]}  Kc3 {[%clk 0:00:04]} 67. Nd7 {[%clk 0:00:03]}  a5 {[%clk 0:00:04]} 68. Nb6 {[%clk 0:00:04]}  Nb3 {[%clk 0:00:01]} 69. Kxf3 {[%clk 0:00:03]}  Kd4 {[%clk 0:00:02]} 70. Ke2 {[%clk 0:00:04]}  Kc5 {[%clk 0:00:02]} 71. Nd7+ {[%clk 0:00:04]}  Kb5 {[%clk 0:00:02]} 72. Kd3 {[%clk 0:00:04]}  a4 {[%clk 0:00:02]} 73. Kc3 {[%clk 0:00:05]}  Na5 {[%clk 0:00:03]} 74. Nf6 {[%clk 0:00:05]}  a3 {[%clk 0:00:04]} 75. Ne4 {[%clk 0:00:05]}  Nc6 {[%clk 0:00:03]} 76. Kb3 {[%clk 0:00:05]}  Nd4+ {[%clk 0:00:04]} 77. Kxa3 {[%clk 0:00:05]} 1/2-1/2


[Site "https://www.chess.com"]

[Event "Titled Tuesday Blitz July 6 2021"]
[White "Alavi, Sayed Javad"]
[Black "Martins, Igor Carvalho Ribeiro"]
[WhiteFideId "12500607"]
[BlackFideId "2162962"]
[WhiteElo "2495"]
[BlackElo "2522"]
[Result "1-0"]
[Round "06"]
[TimeControl "180+1"]
[Date "2021.07.06"]
[WhiteClock "0:02:13"]
[BlackClock "0:02:33"]

1. e4 {[%clk 0:02:58]}  c5 {[%clk 0:02:59]} 2. c3 {[%clk 0:02:56]}  Nf6 {[%clk 0:02:57]} 3. e5 {[%clk 0:02:56]}  Nd5 {[%clk 0:02:56]} 4. d4 {[%clk 0:02:57]}  cxd4 {[%clk 0:02:55]} 5. cxd4 {[%clk 0:02:58]}  d6 {[%clk 0:02:56]} 6. Nf3 {[%clk 0:02:58]}  Nc6 {[%clk 0:02:55]} 7. Bc4 {[%clk 0:02:56]}  Nb6 {[%clk 0:02:55]} 8. Bb5 {[%clk 0:02:55]}  dxe5 {[%clk 0:02:55]} 9. Nxe5 {[%clk 0:02:53]}  Bd7 {[%clk 0:02:55]} 10. Nxd7 {[%clk 0:02:53]}  Qxd7 {[%clk 0:02:55]} 11. O-O {[%clk 0:02:52]}  e6 {[%clk 0:02:53]} 12. Nc3 {[%clk 0:02:51]}  Rd8 {[%clk 0:02:53]} 13. Qf3 {[%clk 0:02:39]}  Be7 {[%clk 0:02:49]} 14. Qg3 {[%clk 0:02:31]}  O-O {[%clk 0:02:46]} 15. Rd1 {[%clk 0:02:20]}  a6 {[%clk 0:02:43]} 16. Bh6 {[%clk 0:02:14]}  Bf6 {[%clk 0:02:33]} 17. Ne4 {[%clk 0:02:13]} 1-0


[Site "https://www.chess.com"]

[Event "Titled Tuesday Blitz July 6 2021"]
[White "Alavkin, Arseny"]
[Black "Siva Mahadevan"]
[WhiteFideId "4120612"]
[BlackFideId "25043153"]
[WhiteElo "2401"]
[BlackElo "2203"]
[Result "0-1"]
[Round "06"]
[TimeControl "180+1"]
[Date "2021.07.06"]
[WhiteClock "0:00:08"]
[BlackClock "0:00:13"]

1. e4 {[%clk 0:03:00]}  c5 {[%clk 0:02:58]} 2. Nc3 {[%clk 0:03:01]}  Nc6 {[%clk 0:02:57]} 3. Nge2 {[%clk 0:03:00]}  d6 {[%clk 0:02:57]} 4. d4 {[%clk 0:03:00]}  cxd4 {[%clk 0:02:57]} 5. Nxd4 {[%clk 0:03:00]}  Nf6 {[%clk 0:02:58]} 6. Bg5 {[%clk 0:03:01]}  e6 {[%clk 0:02:58]} 7. Qd2 {[%clk 0:03:01]}  a6 {[%clk 0:02:58]} 8. O-O-O {[%clk 0:03:01]}  Bd7 {[%clk 0:02:59]} 9. f4 {[%clk 0:03:01]}  b5 {[%clk 0:02:58]} 10. Bxf6 {[%clk 0:03:00]}  gxf6 {[%clk 0:02:59]} 11. Kb1 {[%clk 0:02:58]}  Qb6 {[%clk 0:02:58]} 12. f5 {[%clk 0:02:58]}  Qxd4 {[%clk 0:02:51]} 13. Qxd4 {[%clk 0:02:59]}  Nxd4 {[%clk 0:02:51]} 14. Rxd4 {[%clk 0:02:59]}  h5 {[%clk 0:02:52]} 15. Be2 {[%clk 0:02:51]}  h4 {[%clk 0:02:52]} 16. Bf3 {[%clk 0:02:51]}  Rc8 {[%clk 0:02:49]} 17. Rhd1 {[%clk 0:02:51]}  Rc5 {[%clk 0:02:40]} 18. a3 {[%clk 0:02:47]}  Bc6 {[%clk 0:02:37]} 19. R4d3 {[%clk 0:02:43]}  Rg8 {[%clk 0:02:11]} 20. Re1 {[%clk 0:02:30]}  Rg5 {[%clk 0:02:07]} 21. Ne2 {[%clk 0:02:27]}  exf5 {[%clk 0:01:30]} 22. Nd4 {[%clk 0:02:19]}  Bxe4 {[%clk 0:01:28]} 23. Nxf5 {[%clk 0:02:18]}  d5 {[%clk 0:00:43]} 24. Bxe4 {[%clk 0:01:04]}  dxe4 {[%clk 0:00:44]} 25. Rxe4+ {[%clk 0:01:04]}  Re5 {[%clk 0:00:44]} 26. Rxe5+ {[%clk 0:01:05]}  fxe5 {[%clk 0:00:45]} 27. Nxh4 {[%clk 0:01:05]}  e4 {[%clk 0:00:36]} 28. Re3 {[%clk 0:01:04]}  f5 {[%clk 0:00:36]} 29. g3 {[%clk 0:01:03]}  Rh5 {[%clk 0:00:34]} 30. Re2 {[%clk 0:01:03]}  Kf7 {[%clk 0:00:29]} 31. Rf2 {[%clk 0:00:53]}  Kf6 {[%clk 0:00:29]} 32. Kc1 {[%clk 0:00:46]}  Bd6 {[%clk 0:00:29]} 33. Kd1 {[%clk 0:00:44]}  f4 {[%clk 0:00:29]} 34. Ke2 {[%clk 0:00:25]}  Kg5 {[%clk 0:00:23]} 35. Rg2 {[%clk 0:00:14]}  Kg4 {[%clk 0:00:18]} 36. Rg1 {[%clk 0:00:05]}  f3+ {[%clk 0:00:16]} 37. Ke1 {[%clk 0:00:04]}  e3 {[%clk 0:00:15]} 38. Rf1 {[%clk 0:00:03]}  f2+ {[%clk 0:00:14]} 39. Ke2 {[%clk 0:00:03]}  Rd5 {[%clk 0:00:14]} 40. Ng2 {[%clk 0:00:02]}  Rd2+ {[%clk 0:00:13]} 41. Kxe3 {[%clk 0:00:03]}  Rxc2 {[%clk 0:00:13]} 42. Kd3 {[%clk 0:00:03]}  Rxb2 {[%clk 0:00:13]} 43. Nh4 {[%clk 0:00:02]}  Bxa3 {[%clk 0:00:11]} 44. Ke3 {[%clk 0:00:03]}  Bc5+ {[%clk 0:00:11]} 45. Kd3 {[%clk 0:00:03]}  b4 {[%clk 0:00:11]} 46. Kc4 {[%clk 0:00:04]}  Ba7 {[%clk 0:00:10]} 47. Ng6 {[%clk 0:00:04]}  Kf3 {[%clk 0:00:10]} 48. Nf4 {[%clk 0:00:03]}  a5 {[%clk 0:00:09]} 49. h4 {[%clk 0:00:03]}  Kxg3 {[%clk 0:00:10]} 50. Nd3 {[%clk 0:00:03]}  Rc2+ {[%clk 0:00:10]} 51. Kb5 {[%clk 0:00:04]}  Kg2 {[%clk 0:00:10]} 52. Rd1 {[%clk 0:00:02]}  f1=Q {[%clk 0:00:10]} 53. Rxf1 {[%clk 0:00:02]}  Kxf1 {[%clk 0:00:11]} 54. Kxa5 {[%clk 0:00:03]}  b3 {[%clk 0:00:11]} 55. Ka6 {[%clk 0:00:03]}  Be3 {[%clk 0:00:10]} 56. h5 {[%clk 0:00:04]}  b2 {[%clk 0:00:11]} 57. Nxb2 {[%clk 0:00:05]}  Rxb2 {[%clk 0:00:12]} 58. Ka5 {[%clk 0:00:04]}  Ke2 {[%clk 0:00:12]} 59. Ka6 {[%clk 0:00:05]}  Kd3 {[%clk 0:00:12]} 60. Ka5 {[%clk 0:00:06]}  Kc4 {[%clk 0:00:13]} 61. Ka6 {[%clk 0:00:07]}  Bd4 {[%clk 0:00:13]} 62. Ka5 {[%clk 0:00:08]} 0-1


[Site "https://www.chess.com"]